{"text_format":"1","workbook":"xlsx","n_sheets":17,"sheets":["Sheet1","Main Inventory List","Inventory Sheet","Inventory Assignments","JAN","Sheet2","FEB","MAR","APR","MAY","JUN","JUL","AUG","SEP","OCT","NOV","DEC"],"not_rendered":{"charts":0,"images":0,"macros":1,"external_links":0,"defined_names":5,"comments":0,"pivot_tables":0},"unopened":[],"bounds":{"document_bytes":16777216,"sheet_cells":100000,"rows_first":2000,"rows_last":500,"rows_between":2000,"halvings":0,"cell_chars":16384,"cell_head_chars":4096},"cells_cut":0,"cells_raw":0,"read":"whole","date_system":"1900"}

{"sheet":"Sheet1","index":0,"n_rows":3,"n_cols":21,"rows_kept":3,"cut":false,"hidden":true,"merged":[[0,0,0,21],[1,2,1,7],[1,17,1,18],[1,19,1,21]]}
["ARPA Inventory Sheet"]
[null,null,"Type",null,null,null,null,null,null,null,null,null,null,null,null,null,null,"Update Staff Assignment ",null,"Removed from Inventory"]
["I D Number","Location of Equipment","Furniture & Fixtures","Electronics","Computer Equipment","Office Equipment","AV Equipment","Other","Description","Color","Make","Model#","Serial #","Purchase Date","Unit Cost","Vendor/Manufacturer:","Warranty Date","Date","Staff Assignment ","Date","Reason"]

{"sheet":"Main Inventory List","index":1,"n_rows":3,"n_cols":14,"rows_kept":3,"cut":false,"hidden":false,"merged":[[0,0,0,11],[1,0,1,3],[1,5,1,7],[1,10,1,11]]}
["ARPA Inventory Sheet"]
["Purchased Inventory",null,null,null,null,"Total Inventory Cost:",null,null,{"$f":"SUMPRODUCT(I4:I5,H4:H5)","v":0},null,null,null,null,"Y"]
["Type of Equipment","Location of Equipment","Inventory #","DESCRIPTION OF ITEM/ PURPOSE","Invoice #","Invoice Date","Reimbursement Month","Unit Price","Quantity","Vendor","Date Removed","Justification"]

{"sheet":"Inventory Sheet","index":2,"n_rows":30,"n_cols":11,"rows_kept":30,"cut":false,"hidden":true,"merged":[[0,0,0,8],[1,7,1,8],[1,0,1,3],[1,4,1,5]]}
["ARPA Inventory Sheet"]
["Purchased Inventory",null,null,null,"Total Inventory Cost:",null,{"$f":"SUM(F4:F9)","v":0},"Removed from Inventory",null,null,"Y"]
["Type of Equipment","Location of Equipment","Description","Model/Serial#","Purchase Date","Cost","Vendor","Date Removed","Justification"]
[null,null,{"$f":"_xlfn._xlws.FILTER(JAN!B:B,JAN!O:O=\"Y\",\"\")","v":""},null,{"$f":"_xlfn._xlws.FILTER(JAN!E:E,JAN!O:O=\"Y\",\"\")","v":""},{"$f":"_xlfn._xlws.FILTER(JAN!I:I,JAN!O:O=\"Y\",\"\")","v":""},{"$f":"_xlfn._xlws.FILTER(JAN!A:A,JAN!O:O=\"Y\",\"\")","v":""},"2023-04-04","Exploded"]
[]
[]
[]
[]
[]
[null,null,{"$f":"_xlfn._xlws.FILTER(FEB!B:B,FEB!O:O=\"Y\",\"\")","v":""},null,{"$f":"_xlfn._xlws.FILTER(FEB!E:E,FEB!O:O=\"Y\",\"\")","v":""},{"$f":"_xlfn._xlws.FILTER(FEB!I:I,FEB!O:O=\"Y\",\"\")","v":""},{"$f":"_xlfn._xlws.FILTER(FEB!A:A,FEB!O:O=\"Y\",\"\")","v":""},null,null,"FEB"]
[]
[null,null,{"$f":"_xlfn._xlws.FILTER(MAR!B:B,MAR!O:O=\"Y\",\"\")","v":""},null,{"$f":"_xlfn._xlws.FILTER(MAR!E:E,MAR!O:O=\"Y\",\"\")","v":""},{"$f":"_xlfn._xlws.FILTER(MAR!I:I,MAR!O:O=\"Y\",\"\")","v":""},{"$f":"_xlfn._xlws.FILTER(MAR!A:A,MAR!O:O=\"Y\",\"\")","v":""},null,null,"MAR"]
[]
[null,null,{"$f":"_xlfn._xlws.FILTER(APR!B:B,APR!O:O=\"Y\",\"\")","v":""},null,{"$f":"_xlfn._xlws.FILTER(APR!E:E,APR!O:O=\"Y\",\"\")","v":""},{"$f":"_xlfn._xlws.FILTER(APR!I:I,APR!O:O=\"Y\",\"\")","v":""},{"$f":"_xlfn._xlws.FILTER(APR!A:A,APR!O:O=\"Y\",\"\")","v":""},null,null,"APR"]
[]
[null,null,{"$f":"_xlfn._xlws.FILTER(MAY!B:B,MAY!O:O=\"Y\",\"\")","v":""},null,{"$f":"_xlfn._xlws.FILTER(MAY!E:E,MAY!O:O=\"Y\",\"\")","v":""},{"$f":"_xlfn._xlws.FILTER(MAY!I:I,MAY!O:O=\"Y\",\"\")","v":""},{"$f":"_xlfn._xlws.FILTER(MAY!A:A,MAY!O:O=\"Y\",\"\")","v":""},null,null,"MAY"]
[]
[null,null,{"$f":"_xlfn._xlws.FILTER(JUN!B:B,JUN!O:O=\"Y\",\"\")","v":""},null,{"$f":"_xlfn._xlws.FILTER(JUN!E:E,JUN!O:O=\"Y\",\"\")","v":""},{"$f":"_xlfn._xlws.FILTER(JUN!I:I,JUN!O:O=\"Y\",\"\")","v":""},{"$f":"_xlfn._xlws.FILTER(JUN!A:A,JUN!O:O=\"Y\",\"\")","v":""},null,null,"JUN"]
[]
[null,null,{"$f":"_xlfn._xlws.FILTER(JUL!B:B,JUL!O:O=\"Y\",\"\")","v":""},null,{"$f":"_xlfn._xlws.FILTER(JUL!E:E,JUL!O:O=\"Y\",\"\")","v":""},{"$f":"_xlfn._xlws.FILTER(JUL!I:I,JUL!O:O=\"Y\",\"\")","v":""},{"$f":"_xlfn._xlws.FILTER(JUL!A:A,JUL!O:O=\"Y\",\"\")","v":""},null,null,"JUL"]
[]
[null,null,{"$f":"_xlfn._xlws.FILTER(AUG!B:B,AUG!O:O=\"Y\",\"\")","v":""},null,{"$f":"_xlfn._xlws.FILTER(AUG!E:E,AUG!O:O=\"Y\",\"\")","v":""},{"$f":"_xlfn._xlws.FILTER(AUG!I:I,AUG!O:O=\"Y\",\"\")","v":""},{"$f":"_xlfn._xlws.FILTER(AUG!A:A,AUG!O:O=\"Y\",\"\")","v":""},null,null,"AUG"]
[]
[null,null,{"$f":"_xlfn._xlws.FILTER(SEP!B:B,SEP!O:O=\"Y\",\"\")","v":""},null,{"$f":"_xlfn._xlws.FILTER(SEP!E:E,SEP!O:O=\"Y\",\"\")","v":""},{"$f":"_xlfn._xlws.FILTER(SEP!I:I,SEP!O:O=\"Y\",\"\")","v":""},{"$f":"_xlfn._xlws.FILTER(SEP!A:A,SEP!O:O=\"Y\",\"\")","v":""},null,null,"SEP"]
[]
[null,null,{"$f":"_xlfn._xlws.FILTER(OCT!B:B,OCT!O:O=\"Y\",\"\")","v":""},null,{"$f":"_xlfn._xlws.FILTER(OCT!E:E,OCT!O:O=\"Y\",\"\")","v":""},{"$f":"_xlfn._xlws.FILTER(OCT!I:I,OCT!O:O=\"Y\",\"\")","v":""},{"$f":"_xlfn._xlws.FILTER(OCT!A:A,OCT!O:O=\"Y\",\"\")","v":""},null,null,"OCT"]
[]
[null,null,{"$f":"_xlfn._xlws.FILTER(NOV!B:B,NOV!O:O=\"Y\",\"\")","v":""},null,{"$f":"_xlfn._xlws.FILTER(NOV!E:E,NOV!O:O=\"Y\",\"\")","v":""},{"$f":"_xlfn._xlws.FILTER(NOV!I:I,NOV!O:O=\"Y\",\"\")","v":""},{"$f":"_xlfn._xlws.FILTER(NOV!A:A,NOV!O:O=\"Y\",\"\")","v":""},null,null,"NOV"]
[]
[null,null,{"$f":"_xlfn._xlws.FILTER(DEC!B:B,DEC!O:O=\"Y\",\"\")","v":""},null,{"$f":"_xlfn._xlws.FILTER(DEC!E:E,DEC!O:O=\"Y\",\"\")","v":""},{"$f":"_xlfn._xlws.FILTER(DEC!I:I,DEC!O:O=\"Y\",\"\")","v":""},{"$f":"_xlfn._xlws.FILTER(DEC!A:A,DEC!O:O=\"Y\",\"\")","v":""},null,null,"DEC"]

{"sheet":"Inventory Assignments","index":3,"n_rows":7,"n_cols":5,"rows_kept":7,"cut":false,"hidden":true,"merged":[[0,0,0,4]]}
["ARPA Inventory Assignments"]
["Type of Equipment","Model/Serial#","Staff Assigned","Date Assigned","Date Returned"]
["Laptop",123,"Regina","2023-04-01","2023-04-04"]
["Laptop",456,"Kari","2023-04-01"]
["Laptop",789,"Sandra","2023-04-01"]
["Laptop",987,"Caroly","2023-04-01"]
["Laptop",654,"Regina","2023-04-05"]

{"sheet":"JAN","index":4,"n_rows":3,"n_cols":15,"rows_kept":3,"cut":false,"hidden":false,"merged":[]}
["CIRCUIT CY23- JAN",null,null,null,null,null,null,null,null,null,null," ",null,null,"FOR AOC USE ONLY"]
["Equipment and Furniture"]
["Vendor","DESCRIPTION OF ITEM/ PURPOSE","Inventory #","Invoice #","Invoice Date","Reimbursement Month","P.O.#","UNIT PRICE","Quantity","Check","Year","Staff Assigned ","Date Assigned","Date Returned","Approved?"]

{"sheet":"Sheet2","index":5,"n_rows":0,"n_cols":0,"rows_kept":0,"cut":false,"hidden":true,"merged":[]}

{"sheet":"FEB","index":6,"n_rows":3,"n_cols":15,"rows_kept":3,"cut":false,"hidden":false,"merged":[[0,0,0,10],[3,15,4,20],[7,18,8,24],[9,24,10,30]]}
["Circuit CY23- Month of Request",null,null,null,null,null,null,null,null,null,null,null,null,null,"FOR AOC USE ONLY"]
["Equipment and Furniture"]
["Vendor","DESCRIPTION OF ITEM/ PURPOSE","Inventory #","Invoice #","Invoice Date","Reimbursement month","P.O.#","UNIT PRICE","Amount","Check","Year","ARPA Staff","Date Assigned","Date Returned","Approved?"]

{"sheet":"MAR","index":7,"n_rows":3,"n_cols":15,"rows_kept":3,"cut":false,"hidden":false,"merged":[[0,0,0,10],[5,18,6,24],[7,24,8,30]]}
["Circuit CY23- Month of Request",null,null,null,null,null,null,null,null,null,null,null,null,null,"FOR AOC USE ONLY"]
["Equipment and Furniture"]
["Vendor","DESCRIPTION OF ITEM/ PURPOSE","Inventory #","Invoice #","Invoice Date","Reimbursement month","P.O.#","UNIT PRICE","Amount","Check","Year","ARPA Staff","Date Assigned","Date Returned","Approved?"]

{"sheet":"APR","index":8,"n_rows":3,"n_cols":15,"rows_kept":3,"cut":false,"hidden":false,"merged":[[0,0,0,10],[4,18,5,24],[6,24,7,30]]}
["Circuit CY23- Month of Request",null,null,null,null,null,null,null,null,null,null,null,null,null,"FOR AOC USE ONLY"]
["Equipment and Furniture"]
["Vendor","DESCRIPTION OF ITEM/ PURPOSE","Inventory #","Invoice #","Invoice Date","Reimbursement month","P.O.#","UNIT PRICE","Amount","Check","Year","ARPA Staff","Date Assigned","Date Returned","Approved?"]

{"sheet":"MAY","index":9,"n_rows":3,"n_cols":15,"rows_kept":3,"cut":false,"hidden":false,"merged":[[0,0,0,10],[3,24,4,30]]}
["Circuit CY23- Month of Request",null,null,null,null,null,null,null,null,null,null,null,null,null,"FOR AOC USE ONLY"]
["Equipment and Furniture"]
["Vendor","DESCRIPTION OF ITEM/ PURPOSE","Inventory #","Invoice #","Invoice Date","Reimbursement month","P.O.#","UNIT PRICE","Amount","Check","Year","ARPA Staff","Date Assigned"," Date Returned","Approved?"]

{"sheet":"JUN","index":10,"n_rows":3,"n_cols":15,"rows_kept":3,"cut":false,"hidden":false,"merged":[[0,0,0,10],[5,18,6,24],[7,24,8,30]]}
["Circuit CY23- Month of Request",null,null,null,null,null,null,null,null,null,null,null,null,null,"FOR AOC USE ONLY"]
["Equipment and Furniture"]
["Vendor","DESCRIPTION OF ITEM/ PURPOSE","Inventory #","Invoice #","Invoice Date","Reimbursement month","P.O.#","UNIT PRICE","Amount","Check","Year","ARPA Staff","Date Assigned","Date Returned","Approved?"]

{"sheet":"JUL","index":11,"n_rows":3,"n_cols":15,"rows_kept":3,"cut":false,"hidden":false,"merged":[[0,0,0,10],[3,18,3,24],[4,24,5,30]]}
["Circuit CY23- Month of Request",null,null,null,null,null,null,null,null,null,null,null,null,null,"FOR AOC USE ONLY"]
["Equipment and Furniture"]
["Vendor","DESCRIPTION OF ITEM/ PURPOSE","Inventory #","Invoice #","Invoice Date","Reimbursement month","P.O.#","UNIT PRICE","Amount","Check","Year","ARPA Staff","Date Assigned","Date Returned","Approved?"]

{"sheet":"AUG","index":12,"n_rows":3,"n_cols":15,"rows_kept":3,"cut":false,"hidden":false,"merged":[[0,0,0,10],[3,18,4,24],[5,24,6,30]]}
["Circuit CY23- Month of Request",null,null,null,null,null,null,null,null,null,null,null,null,null,"FOR AOC USE ONLY"]
["Equipment and Furniture"]
["Vendor","DESCRIPTION OF ITEM/ PURPOSE","Inventory #","Invoice #","Invoice Date","Reimbursement month","P.O.#","UNIT PRICE","Amount","Check","Year","ARPA Staff","Date Assigned","Date Returned","Approved?"]

{"sheet":"SEP","index":13,"n_rows":3,"n_cols":15,"rows_kept":3,"cut":false,"hidden":false,"merged":[[0,0,0,10],[5,18,6,24],[7,24,8,30]]}
["Circuit CY23- Month of Request",null,null,null,null,null,null,null,null,null,null,null,null,null,"FOR AOC USE ONLY"]
["Equipment and Furniture"]
["Vendor","DESCRIPTION OF ITEM/ PURPOSE","Inventory #","Invoice #","Invoice Date","Reimbursement month","P.O.#","UNIT PRICE","Amount","Check","Year","ARPA Staff","Date Assigned","Date Returned","Approved?"]

{"sheet":"OCT","index":14,"n_rows":3,"n_cols":15,"rows_kept":3,"cut":false,"hidden":false,"merged":[[0,0,0,10],[5,18,6,24],[7,24,8,30]]}
["Circuit CY23- Month of Request",null,null,null,null,null,null,null,null,null,null,null,null,null,"FOR AOC USE ONLY"]
["Equipment and Furniture"]
["Vendor","DESCRIPTION OF ITEM/ PURPOSE","Inventory #","Invoice #","Invoice Date","Reimbursement month","P.O.#","UNIT PRICE","Amount","Check","Year","ARPA Staff","Date Assigned","Date Returned","Approved?"]

{"sheet":"NOV","index":15,"n_rows":3,"n_cols":15,"rows_kept":3,"cut":false,"hidden":false,"merged":[[0,0,0,10],[5,18,6,24],[7,24,8,30]]}
["Circuit CY23- Month of Request",null,null,null,null,null,null,null,null,null,null,null,null,null,"FOR AOC USE ONLY"]
["Equipment and Furniture"]
["Vendor","DESCRIPTION OF ITEM/ PURPOSE","Inventory #","Invoice #","Invoice Date","Reimbursement month","P.O.#","UNIT PRICE","Amount","Check","Year","ARPA Staff","Date Assigned","Date Returned","Approved?"]

{"sheet":"DEC","index":16,"n_rows":3,"n_cols":15,"rows_kept":3,"cut":false,"hidden":false,"merged":[[0,0,0,10],[4,18,5,24],[6,24,7,30]]}
["Circuit CY23- Month of Request",null,null,null,null,null,null,null,null,null,null,null,null,null,"FOR AOC USE ONLY"]
["Equipment and Furniture"]
["Vendor","DESCRIPTION OF ITEM/ PURPOSE","Inventory #","Invoice #","Invoice Date","Reimbursement month","P.O.#","UNIT PRICE","Amount","Check","Year","ARPA Staff","Date Assigned","Date Returned","Approved?"]